fUSD/lending_fUSD_20241216
["ID","MTS","AMOUNT","RATE_DAILY","PERIOD"]
[345528271,1734313892585,-575.21,0.00021917,3]
[345528272,1734313892594,-500.0,0.00021917,3]
[345528273,1734313892608,-500.0,0.00021917,3]
[345528274,1734313892620,-923.24,0.00021917,3]
[345528275,1734313892630,-575.21,0.00021917,3]
[345528276,1734313892639,-500.0,0.00021917,3]
[345528277,1734313892650,-500.0,0.00021917,3]
[345528278,1734313892659,-923.24,0.00021917,3]
[345528279,1734313892668,-575.34756527,0.00021917,3]
[345528280,1734313892678,-515.19107583,0.00021917,3]
[345528281,1734313892688,-500.0,0.00021917,3]
[345528282,1734313892698,-500.0,0.00021917,3]
[345528283,1734313892710,-923.24,0.00021917,3]
[345528284,1734313892719,-500.0,0.00021917,3]
[345528285,1734313892729,-500.0,0.00021917,3]
[345528286,1734313892739,-500.0,0.00021917,3]
[345528287,1734313892748,-923.24,0.00021917,3]
[345528288,1734313892757,-500.0,0.00021917,3]
[345528289,1734313892767,-500.0,0.00021917,3]
[345528290,1734313892777,-500.0,0.00021917,3]
[345528291,1734313892787,-923.24,0.00021917,3]
[345528292,1734313892797,-500.0,0.00021917,3]
[345528293,1734313892807,-500.0,0.00021917,3]
[345528294,1734313892816,-500.0,0.00021917,3]
[345528295,1734313892826,-923.24,0.00021917,3]
[345528296,1734313892836,-500.0,0.00021917,3]
[345528297,1734313892846,-500.0,0.00021917,3]
[345528298,1734313892857,-500.0,0.00021917,3]
[345528299,1734313892972,-923.24,0.00021917,3]
[345528300,1734313892983,-500.0,0.00021917,3]
[345528301,1734313892993,-500.0,0.00021917,3]
[345528302,1734313893002,-500.0,0.00021917,3]
[345528303,1734313893012,-923.24,0.00021917,3]
[345528304,1734313893022,-500.0,0.00021917,3]
[345528305,1734313893031,-500.0,0.00021917,3]
[345528306,1734313893041,-500.0,0.00021917,3]
[345528307,1734313893050,-923.24,0.00021917,3]
[345528308,1734313893060,-500.0,0.00021917,3]
[345528309,1734313893070,-500.0,0.00021917,3]
[345528310,1734313893079,-500.0,0.00021917,3]
[345528311,1734313893089,-500.0,0.00021917,3]
[345528312,1734313893098,-923.24,0.00021917,3]
[345528313,1734313893110,-500.0,0.00021917,3]
[345528314,1734313893119,-500.0,0.00021917,3]
[345528315,1734313893129,-500.0,0.00021917,3]
[345528316,1734313893138,-500.0,0.00021917,3]
[345528317,1734313893148,-500.0,0.00021917,3]
[345528318,1734313893157,-923.24,0.00021917,3]
[345528319,1734313893167,-500.0,0.00021917,3]
[345528320,1734313893176,-500.0,0.00021917,3]
[345528321,1734313893186,-500.0,0.00021917,3]
[345528322,1734313893195,-500.0,0.00021917,3]
[345528323,1734313893204,-500.0,0.00021917,3]
[345528324,1734313893214,-923.24,0.00021917,3]
[345528325,1734313893223,-500.0,0.00021917,3]
[345528326,1734313893232,-190.21879774,0.00021917,3]
[345528327,1734313893242,-500.0,0.00021917,3]
[345528328,1734313893251,-500.0,0.00021917,3]
[345528329,1734313893261,-504.35243915,0.00021917,3]
[345528330,1734313893271,-923.24,0.00021917,3]
[345528331,1734313893280,-500.0,0.00021917,3]
[345528332,1734313893290,-514.14423985,0.00021917,3]
[345528333,1734313893299,-500.0,0.00021917,3]
[345528334,1734313893308,-500.0,0.00021917,3]
[345528335,1734313893318,-534.66989846,0.00021917,3]
[345528336,1734313893327,-923.24,0.00021917,3]
[345528337,1734313893337,-500.0,0.00021917,3]
[345528338,1734313893346,-500.0,0.00021917,3]
[345528339,1734313893357,-500.0,0.00021917,3]
[345528340,1734313893367,-923.24,0.00021917,3]
[345528341,1734313893377,-500.0,0.00021917,3]
[345528342,1734313893386,-500.0,0.00021917,3]
[345528343,1734313893396,-500.0,0.00021917,3]
[345528344,1734313893406,-923.24,0.00021917,3]
[345528345,1734313893416,-500.0,0.00021917,3]
[345528346,1734313893425,-500.0,0.00021917,3]
[345528347,1734313893435,-379.10341118,0.00021917,3]
[345528348,1734313893445,-923.24,0.00021917,3]
[345528349,1734313893455,-500.0,0.00021917,3]
[345528350,1734313893464,-923.24,0.00021917,3]
[345528351,1734313893474,-500.0,0.00021917,3]
[345528352,1734313893483,-500.0,0.00021917,3]
[345528353,1734313893493,-923.24,0.00021917,3]
[345528354,1734313893502,-500.0,0.00021917,3]
[345528355,1734313893512,-500.0,0.00021917,3]
[345528356,1734313893521,-631.69,0.00021917,3]
[345528357,1734313893531,-500.0,0.00021917,3]
[345528358,1734313893540,-923.26477067,0.00021917,3]
[345528359,1734313893550,-280.56019001,0.00021917,3]
[345528360,1734313893559,-631.69,0.00021917,3]
[345528361,1734313893569,-500.74332186,0.00021917,3]
[345528362,1734313893578,-546.11195085,0.00021917,3]
[345528363,1734313893589,-631.69,0.00021917,3]
[345528364,1734313893598,-631.69,0.00021917,3]
[345528365,1734313893609,-631.69,0.00021917,3]
[345528366,1734313893618,-631.69,0.00021917,3]
[345528367,1734313893628,-631.69,0.00021917,3]
[345528368,1734313893638,-500.0,0.00021917,3]
[345528369,1734313893648,-631.69,0.00021917,3]
[345528370,1734313893657,-631.69,0.00021917,3]
[345528371,1734313893668,-500.0,0.00021917,3]
[345528372,1734313893678,-523.72458247,0.00021917,3]
[345528373,1734313893687,-631.69,0.00021917,3]
[345528374,1734313893698,-500.0,0.00021917,3]
[345528375,1734313893710,-500.0,0.00021917,3]
[345528376,1734313893720,-500.0,0.00021917,3]
[345528377,1734313893729,-631.69,0.00021917,3]
[345528378,1734313893739,-500.0,0.00021917,3]
[345528379,1734313893749,-523.31603995,0.00021917,3]
[345528380,1734313893758,-631.69,0.00021917,3]
[345528381,1734313893768,-629.95,0.00021917,3]
[345528382,1734313893779,-500.0,0.00021917,3]
[345528383,1734313893788,-631.69,0.00021917,3]
[345528384,1734313893799,-629.95,0.00021917,3]
[345528385,1734313893808,-500.0,0.00021917,3]
[345528386,1734313893818,-500.0,0.00021917,3]
[345528387,1734313893827,-631.69,0.00021917,3]
[345528388,1734313893837,-629.95,0.00021917,3]
[345528389,1734313893846,-500.0,0.00021917,3]
[345528390,1734313893857,-631.69,0.00021917,3]
[345528391,1734313893866,-629.95,0.00021917,3]
[345528392,1734313893876,-151.0,0.00021917,2]
[345528393,1734313893885,-500.0,0.00021917,3]
[345528394,1734313893895,-581.72,0.00021917,3]
[345528395,1734313893904,-500.0,0.00021917,3]
[345528396,1734313893914,-1798.61,0.00021917,3]
[345528397,1734313893923,-631.69,0.00021917,3]
[345528398,1734313893933,-629.95,0.00021917,3]
[345528399,1734313893942,-151.0,0.00021917,2]
[345528400,1734313893952,-581.72,0.00021917,3]
[345528401,1734313893962,-500.0,0.00021917,3]
[345528402,1734313893972,-500.0,0.00021917,3]
[345528403,1734313893981,-1798.61,0.00021917,3]
[345528404,1734313893990,-631.69,0.00021917,3]
[345528405,1734313894000,-500.0,0.00021917,3]
[345528406,1734313894009,-1798.61,0.00021917,3]
[345528407,1734313894019,-500.0,0.00021917,3]
[345528408,1734313894029,-581.72,0.00021917,3]
[345528409,1734313894038,-631.69,0.00021917,3]
[345528410,1734313894048,-629.95,0.00021917,3]
[345528411,1734313894057,-1798.61,0.00021917,3]
[345528412,1734313894066,-500.0,0.00021917,3]
[345528413,1734313894075,-631.69,0.00021917,3]
[345528414,1734313894085,-500.0,0.00021917,3]
[345528415,1734313894095,-500.0,0.00021917,3]
[345528416,1734313894105,-581.72,0.00021917,3]
[345528417,1734313894114,-500.0,0.00021917,3]
[345528418,1734313894124,-629.95,0.00021917,3]
[345528419,1734313894133,-1798.61,0.00021917,3]
[345528420,1734313894143,-500.0,0.00021917,3]
[345528421,1734313894152,-631.69,0.00021917,3]
[345528422,1734313894161,-500.0,0.00021917,3]
[345528423,1734313894171,-581.72,0.00021917,3]
[345528424,1734313894181,-500.0,0.00021917,3]
[345528425,1734313894190,-500.0,0.00021917,3]
[345528426,1734313894200,-629.95,0.00021917,3]
[345528427,1734313894209,-1798.61,0.00021917,3]
[345528428,1734313894219,-631.69,0.00021917,3]
[345528429,1734313894229,-500.0,0.00021917,3]
[345528430,1734313894239,-581.72,0.00021917,3]
[345528431,1734313894248,-500.0,0.00021917,3]
[345528432,1734313894258,-500.0,0.00021917,3]
[345528433,1734313894268,-629.95,0.00021917,3]
[345528434,1734313894277,-504.04959366,0.00021917,3]
[345528435,1734313894287,-631.69,0.00021917,3]
[345528436,1734313894297,-1798.61,0.00021917,3]
[345528437,1734313894307,-500.0,0.00021917,3]
[345528438,1734313894317,-581.72,0.00021917,3]
[345528439,1734313894327,-500.0,0.00021917,3]
[345528440,1734313894336,-500.0,0.00021917,3]
[345528441,1734313894346,-629.95,0.00021917,3]
[345528442,1734313894355,-500.0,0.00021917,3]
[345528443,1734313894365,-500.0,0.00021917,3]
[345528444,1734313894374,-500.99255701,0.00021917,3]
[345528445,1734313894384,-1798.61,0.00021917,3]
[345528446,1734313894393,-631.69,0.00021917,3]
[345528447,1734313894405,-500.0,0.00021917,3]
[345528448,1734313894415,-581.72,0.00021917,3]
[345528449,1734313894424,-500.0,0.00021917,3]
[345528450,1734313894433,-500.0,0.00021917,3]
[345528451,1734313894443,-629.95,0.00021917,3]
[345528452,1734313894452,-500.0,0.00021917,3]
[345528453,1734313894461,-500.0,0.00021917,3]
[345528454,1734313894470,-1798.61,0.00021917,3]
[345528455,1734313894479,-631.87380413,0.00021917,3]
[345528456,1734313894488,-500.0,0.00021917,3]
[345528457,1734313894497,-581.72,0.00021917,3]
[345528458,1734313894506,-500.0,0.00021917,3]
[345528459,1734313894516,-629.95,0.00021917,3]
[345528460,1734313894526,-500.0,0.00021917,3]
[345528461,1734313894535,-500.0,0.00021917,3]
[345528462,1734313894544,-500.0,0.00021917,3]
[345528463,1734313894553,-1798.61,0.00021917,3]
[345528464,1734313894563,-581.72,0.00021917,3]
[345528465,1734313894573,-500.0,0.00021917,3]
[345528466,1734313894582,-629.95,0.00021917,3]
[345528467,1734313894591,-500.0,0.00021917,3]
[345528468,1734313894600,-500.0,0.00021917,3]
[345528469,1734313894611,-581.72,0.00021917,3]
[345528470,1734313894620,-500.0,0.00021917,3]
[345528471,1734313894629,-500.0,0.00021917,3]
[345528472,1734313894638,-629.95,0.00021917,3]
[345528473,1734313894647,-1798.61,0.00021917,3]
[345528474,1734313894760,-500.0,0.00021917,3]
[345528475,1734313894769,-581.72,0.00021917,3]
[345528476,1734313894781,-310.72052082,0.00021917,3]
[345528477,1734313894790,-500.0,0.00021917,3]
[345528478,1734313894799,-1798.61,0.00021917,3]
[345528479,1734313894808,-500.0,0.00021917,3]
[345528480,1734313894817,-500.0,0.00021917,3]
[345528481,1734313894826,-629.95,0.00021917,3]
[345528482,1734313894836,-581.72,0.00021917,3]
[345528483,1734313894846,-500.0,0.00021917,3]
[345528484,1734313894856,-1798.61,0.00021917,3]
[345528485,1734313894866,-231.10693469,0.00021917,3]
[345528486,1734313894876,-500.0,0.00021917,3]
[345528487,1734313894886,-500.0,0.00021917,3]
[345528488,1734313894897,-581.72,0.00021917,3]
[345528489,1734313894907,-502.93260888,0.00021917,3]
[345528490,1734313894918,-629.95,0.00021917,3]
[345528491,1734313894927,-500.0,0.00021917,3]
[345528492,1734313894937,-581.72,0.00021917,3]
[345528493,1734313894947,-500.0,0.00021917,3]
[345528494,1734313894957,-1798.61,0.00021917,3]
[345528495,1734313894967,-629.95,0.00021917,3]
[345528496,1734313894977,-500.0,0.00021917,3]
[345528497,1734313894987,-500.0,0.00021917,3]
[345528498,1734313894996,-500.0,0.00021917,3]
[345528499,1734313895006,-581.72,0.00021917,3]
[345528500,1734313895015,-1798.61,0.00021917,3]
[345528501,1734313895025,-629.95,0.00021917,3]
[345528502,1734313895034,-500.0,0.00021917,3]
[345528503,1734313895044,-213.97120811,0.00021917,3]
[345528504,1734313895056,-500.0,0.00021917,3]
[345528505,1734313895066,-581.72,0.00021917,3]
[345528506,1734313895076,-1798.61,0.00021917,3]
[345528507,1734313895086,-629.95,0.00021917,3]
[345528508,1734313895096,-500.0,0.00021917,3]
[345528509,1734313895107,-433.32198442,0.00021917,3]
[345528510,1734313895116,-1798.61,0.00021917,3]
[345528511,1734313895126,-629.95,0.00021917,3]
[345528512,1734313895136,-500.0,0.00021917,3]
[345528513,1734313895145,-1798.61,0.00021917,3]
[345528514,1734313895156,-581.72,0.00021917,3]
[345528515,1734313895166,-629.95,0.00021917,3]
[345528516,1734313895176,-500.0,0.00021917,3]
[345528517,1734313895186,-1798.61,0.00021917,3]
[345528518,1734313895196,-629.95,0.00021917,3]
[345528519,1734313895207,-581.72,0.00021917,3]
[345528520,1734313895217,-500.0,0.00021917,3]
[345528521,1734313895228,-1000.0,0.00021917,3]
[345528522,1734313895238,-629.95,0.00021917,3]
[345528523,1734313895247,-581.72,0.00021917,3]
[345528524,1734313895258,-1000.0,0.00021917,3]
[345528525,1734313895269,-500.0,0.00021917,3]
[345528526,1734313895279,-581.72,0.00021917,3]
[345528527,1734313895290,-630.04394013,0.00021917,3]
[345528528,1734313895300,-1000.0,0.00021917,3]
[345528529,1734313895310,-320.22533307,0.00021917,3]
[345528530,1734313895320,-581.72,0.00021917,3]
[345528531,1734313895329,-454.90258811,0.00021917,3]
[345528532,1734313895339,-552.88291568,0.00021917,3]
[345528533,1734313895349,-1030.15647716,0.00021917,3]
[345528534,1734313895359,-500.0,0.00021917,3]
[345528535,1734313895374,-581.72,0.00021917,3]
[345528536,1734313895383,-500.0,0.00021917,3]
[345528537,1734313895393,-581.95625958,0.00021917,3]
[345528538,1734313895402,-500.0,0.00021917,3]
[345528539,1734313895412,-529.908763,0.00021917,3]
[345528540,1734313895421,-500.0,0.00021917,3]
[345528541,1734313895433,-500.0,0.00021917,3]
[345528542,1734313895442,-645.37,0.00021924,2]
[345528543,1734313895452,-150.0,0.00021953,2]
[345528544,1734313895461,-150.0,0.00021953,2]
[345528545,1734313895471,-1500.0,0.0002196,2]
[345528546,1734313895481,-808.7,0.00021962,7]
[345528547,1734313895490,-808.7,0.00021962,7]
[345528548,1734313895499,-808.7,0.00021962,7]
[345528549,1734313895510,-808.7,0.00021962,7]
[345528550,1734313895520,-2822.23,0.0002197,2]
[345528551,1734313895531,-500.6260663,0.00021973,2]
[345528552,1734313895540,-163.3506485,0.00021983,2]
[345528553,1734313895550,-2000.0,0.00022,2]
[345528554,1734313895560,-2000.0,0.00022,2]
[345528555,1734313895575,-2012.7327,0.00022,2]
[345528556,1734313895593,-709626.0,0.00022,2]
[345528557,1734313895614,-151.751565,0.00022,7]
[345528558,1734313895633,-151.0,0.00022,7]
[345528559,1734313895650,-151.539537,0.00022,7]
[345528560,1734313895670,-158.641762,0.00022,7]
[345528561,1734313895688,-151.389056,0.00022,7]
[345528562,1734313895710,-151.783614,0.00022,7]
[345528563,1734313895728,-151.0,0.00022,7]
[345528564,1734313895747,-151.0,0.00022,7]
[345528565,1734313895766,-151.0,0.00022,7]
[345528566,1734313895780,-151.0,0.00022,7]
[345528567,1734313895800,-151.0,0.00022,7]
[345528568,1734313895813,-3622.9105368,0.00022,23]
[345528569,1734313895832,-151.0,0.00022,7]
[345528570,1734313895845,-152.0795,0.00022,7]
[345528571,1734313895863,-213.2249,0.00022,7]
[345528572,1734313895881,-213.2249,0.00022,7]
[345528573,1734313895897,-30000.0,0.00022,2]
[345528574,1734313895913,-151.0,0.00022,7]
[345528575,1734313895930,-176.841701,0.00022,7]
[345528576,1734313895946,-176.841701,0.00022,7]
[345528577,1734313895962,-151.0,0.00022,7]
[345528578,1734313895978,-151.0,0.00022,7]
[345528579,1734313895993,-227.4855823,0.00022004,2]
[345528580,1734313896008,-1447.52370318,0.00022008,2]
[345528581,1734313896024,-1500.0,0.00022016,2]
[345528582,1734313896039,-1628.0,0.0002205,2]
[345528583,1734313896055,-151.0,0.0002205,7]
[345528584,1734313896070,-153.679932,0.0002205,7]
[345528585,1734313896086,-151.0,0.0002205,7]
[345528586,1734313896101,-152.09659,0.0002205,7]
[345528587,1734313896116,-152.09659,0.0002205,7]
[345528588,1734313896132,-500.0,0.00022053,2]
[345528589,1734313896147,-500.0,0.000221,2]
[345528590,1734313896162,-644.44,0.00022143,3]
[345528591,1734313896178,-644.44,0.00022143,3]
[345528592,1734313896192,-644.44,0.00022143,3]
[345528593,1734313896207,-644.44,0.00022143,3]
[345528594,1734313896222,-644.58294618,0.00022143,3]
[345528595,1734313896238,-500.0,0.00022143,3]
[345528596,1734313896253,-205.11543124,0.00022143,3]
[345528597,1734313896269,-502.45435046,0.00022143,3]
[345528598,1734313896284,-284.15355599,0.00022143,3]
[345528599,1734313896300,-508.16,0.00022143,3]
[345528600,1734313896317,-508.16,0.00022143,3]
[345528601,1734313896332,-508.16,0.00022143,3]
[345528602,1734313896346,-508.16,0.00022143,3]
[345528603,1734313896363,-508.17736909,0.00022143,3]
[345528604,1734313896380,-632.24,0.00022143,3]
[345528605,1734313896395,-632.24,0.00022143,3]
[345528606,1734313896410,-632.24,0.00022143,3]
[345528607,1734313896426,-632.24,0.00022143,3]
[345528608,1734313896442,-632.37,0.00022143,3]
[345528609,1734313896458,-500.0,0.00022143,3]
[345528610,1734313896472,-636.28089247,0.00022143,3]
[345528611,1734313896487,-812.87,0.00022143,3]
[345528612,1734313896501,-812.87,0.00022143,3]
[345528613,1734313896516,-812.87,0.00022143,3]
[345528614,1734313896531,-812.87,0.00022143,3]
[345528615,1734313896544,-812.94793931,0.00022143,3]
[345528616,1734313896559,-612.13,0.00022143,3]
[345528617,1734313896574,-612.13,0.00022143,3]
[345528618,1734313896588,-612.13,0.00022143,3]
[345528619,1734313896602,-612.13,0.00022143,3]
[345528620,1734313896618,-612.34422455,0.00022143,3]
[345528621,1734313896634,-397.84,0.00022143,3]
[345528622,1734313896649,-397.84,0.00022143,3]
[345528623,1734313896664,-397.84,0.00022143,3]
[345528624,1734313896678,-397.84,0.00022143,3]
[345528625,1734313896693,-397.84542959,0.00022143,3]
[345528626,1734313896710,-779.4,0.00022143,3]
[345528627,1734313896724,-931.98,0.00022143,3]
[345528628,1734313896739,-931.98,0.00022143,3]
[345528629,1734313896755,-931.98,0.00022143,3]
[345528630,1734313896770,-931.98,0.00022143,3]
[345528631,1734313896788,-932.11007676,0.00022143,3]
[345528632,1734313896803,-781.39,0.00022143,3]
[345528633,1734313896818,-781.39,0.00022143,3]
[345528634,1734313896978,-781.39,0.00022143,3]
[345528635,1734313896987,-781.39,0.00022143,3]
[345528636,1734313896997,-781.57275667,0.00022143,3]
[345528637,1734313897007,-500.0,0.00022143,3]
[345528638,1734313897016,-500.0,0.00022143,3]
[345528639,1734313897025,-405.25865634,0.00022143,3]
[345528640,1734313897034,-570.74,0.00022143,3]
[345528641,1734313897044,-570.74,0.00022143,3]
[345528642,1734313897053,-570.74,0.00022143,3]
[345528643,1734313897063,-570.74,0.00022143,3]
[345528644,1734313897072,-570.87167605,0.00022143,3]
[345528645,1734313897083,-605.62,0.00022143,3]
[345528646,1734313897092,-605.62,0.00022143,3]
[345528647,1734313897101,-605.62,0.00022143,3]
[345528648,1734313897113,-605.62,0.00022143,3]
[345528649,1734313897122,-605.8,0.00022143,3]
[345528650,1734313897131,-500.0,0.00022143,3]
[345528651,1734313897141,-500.0,0.00022143,3]
[345528652,1734313897150,-500.0,0.00022143,3]
[345528653,1734313897159,-527.60782273,0.00022143,3]
[345528654,1734313897170,-586.29,0.00022143,3]
[345528655,1734313897179,-586.29,0.00022143,3]
[345528656,1734313897190,-586.29,0.00022143,3]
[345528657,1734313897199,-586.29,0.00022143,3]
[345528658,1734313897209,-586.4053701,0.00022143,3]
[345528659,1734313897219,-1798.61,0.00022143,3]
[345528660,1734313897228,-1798.61,0.00022143,3]
[345528661,1734313897239,-1798.61,0.00022143,3]
[345528662,1734313897248,-1798.61,0.00022143,3]
[345528663,1734313897261,-1798.82255644,0.00022143,3]
[345528664,1734313897271,-500.0,0.00022144,3]
[345528665,1734313897282,-1056.05104143,0.00022144,10]
[345528666,1734313897291,-501.45981316,0.00022144,3]
[345528667,1734313897300,-503.36778798,0.00022144,3]
[345528668,1734313897309,-359.2364613,0.00022144,3]
[345528669,1734313897318,-511.85835481,0.00022144,3]
[345528670,1734313897327,-500.54330799,0.00022144,3]
[345528671,1734313897337,-500.35546047,0.00022144,3]
[345528672,1734313897346,-500.0,0.00022144,3]
[345528673,1734313897355,-502.66404115,0.00022144,3]
[345528674,1734313897366,-501.25462914,0.00022144,3]
[345528675,1734313897376,-153.60568402,0.00022144,3]
[345528676,1734313897385,-501.75368925,0.00022144,3]
[345528677,1734313897395,-500.38216648,0.00022144,3]
[345528678,1734313897403,-500.70491977,0.00022144,3]
[345528679,1734313897413,-509.05791358,0.00022144,3]
[345528680,1734313897422,-501.72041968,0.00022144,3]
[345528681,1734313897432,-322.40815214,0.00022144,3]
[345528682,1734313897441,-500.28878637,0.00022144,3]
[345528683,1734313897450,-500.54672255,0.00022144,3]
[345528684,1734313897459,-500.0,0.00022144,3]
[345528685,1734313897468,-500.0,0.00022144,3]
[345528686,1734313897479,-500.0,0.00022144,3]
[345528687,1734313897488,-150.0,0.00022146,2]
[345528688,1734313897498,-150.0,0.00022156,2]
[345528689,1734313897507,-880.90287439,0.00022163,2]
[345528690,1734313897516,-1500.0,0.00022167,2]
[345528691,1734313897526,-150.0,0.00022174,2]
[345528692,1734313897535,-500.0,0.0002219,2]
[345528693,1734313897544,-35258.0,0.000222,2]
[345528694,1734313897553,-70000.0,0.000222,2]
[345528695,1734313897563,-500.0,0.0002221,2]
[345528696,1734313897572,-501.48239586,0.0002221,2]
[345528697,1734313897582,-150.0,0.00022213,2]
[345528698,1734313897591,-999.0,0.00022219,7]
[345528699,1734313897600,-999.0,0.00022219,7]
[345528700,1734313897610,-999.0,0.00022219,7]
[345528701,1734313897619,-999.0,0.00022219,7]
[345528702,1734313897629,-999.0,0.00022219,7]
[345528703,1734313897639,-999.0,0.00022219,7]
[345528704,1734313897648,-999.0,0.00022219,7]
[345528705,1734313897658,-999.0,0.00022219,7]
[345528706,1734313897667,-999.0,0.00022219,7]
[345528707,1734313897678,-999.0,0.00022219,7]
[345528708,1734313897688,-999.0,0.00022219,7]
[345528709,1734313897698,-999.0,0.00022219,7]
[345528710,1734313897712,-999.0,0.00022219,7]
[345528711,1734313897722,-999.0,0.00022219,7]
[345528712,1734313897731,-999.0,0.00022219,7]
[345528713,1734313897740,-999.0,0.00022219,7]
[345528714,1734313897750,-999.0,0.00022219,7]
[345528715,1734313897761,-999.0,0.00022219,7]
[345528716,1734313897770,-999.0,0.00022219,7]
[345528717,1734313897781,-999.0,0.00022219,7]
[345528718,1734313897791,-537.03337384,0.00022219,7]
[345528719,1734313897801,-161.69,0.00022226,2]
[345528720,1734313897811,-808.7,0.00022235,7]
[345528721,1734313897820,-808.7,0.00022235,7]
[345528722,1734313897830,-167.83,0.00022236,2]
[345528723,1734313897839,-150.0,0.00022242,2]
[345528724,1734313897849,-150.0,0.00022271,2]
[345528725,1734313897860,-1628.0,0.00022275,2]
[345528726,1734313897870,-1500.0,0.00022281,2]
[345528727,1734313897880,-2352.0,0.000223,2]
[345528728,1734313897890,-3000.0,0.000223,2]
[345528729,1734313897899,-250.0,0.00022306,2]
[345528730,1734313897910,-200.0,0.00022307,2]
[345528731,1734313897920,-500.0,0.00022319,2]
[345528732,1734313897933,-500.0,0.0002232,2]
[345528733,1734313897943,-288.30238011,0.00022327,2]
[345528734,1734313897953,-200.0,0.00022335,2]
[345528735,1734313897962,-200.0,0.00022335,2]
[345528736,1734313897972,-2123.04255742,0.00022336,2]
[345528737,1734313897981,-200.0,0.00022339,2]
[345528738,1734313897991,-200.29,0.00022339,2]
[345528739,1734313898001,-307.01960932,0.00022341,2]
[345528740,1734313898011,-200.0,0.00022341,2]
[345528741,1734313898021,-2123.04255742,0.00022344,2]
[345528742,1734313898031,-2202.28937342,0.00022345,2]
[345528743,1734313898040,-7593.05841966,0.00022345,2]
[345528744,1734313898050,-7593.05841966,0.00022345,2]
[345528745,1734313898060,-2944.25398318,0.00022346,2]
[345528746,1734313898070,-307.01960932,0.00022347,2]
[345528747,1734313898080,-2202.28937342,0.00022351,2]
[345528748,1734313898090,-36576.35437088,0.00022353,2]
[345528749,1734313898100,-433.3304047,0.00022354,2]
[345528750,1734313898109,-433.3304047,0.00022354,2]
[345528751,1734313898119,-7593.05841966,0.00022355,2]
[345528752,1734313898129,-307.01960932,0.00022356,2]
[345528753,1734313898139,-7593.05841966,0.00022356,2]
[345528754,1734313898149,-2202.28937342,0.00022356,2]
[345528755,1734313898158,-200.0,0.00022357,2]
[345528756,1734313898168,-7593.05841966,0.00022359,2]
[345528757,1734313898177,-2944.25398318,0.00022359,2]
[345528758,1734313898187,-2271.54922439,0.00022362,2]
[345528759,1734313898196,-2271.54922439,0.00022362,2]
[345528760,1734313898205,-2944.25398318,0.00022362,2]
[345528761,1734313898214,-36576.35437088,0.00022362,2]
[345528762,1734313898223,-433.3304047,0.00022364,2]
[345528763,1734313898232,-2202.28937342,0.00022366,2]
[345528764,1734313898242,-2202.28937342,0.00022367,2]
[345528765,1734313898251,-2123.04255742,0.00022367,2]
[345528766,1734313898260,-200.0,0.00022369,2]
[345528767,1734313898270,-2944.25398318,0.00022369,2]
[345528768,1734313898280,-200.0,0.00022369,2]
[345528769,1734313898291,-36576.35437088,0.0002237,2]
[345528770,1734313898300,-433.3304047,0.00022371,2]